fUST/lending_fUST_20250221
["ID","MTS","AMOUNT","RATE_DAILY","PERIOD"]
[353810565,1740067635951,291.293828,9.041e-05,2]
[353810571,1740067737989,-1000.0,0.000138,30]
[353810672,1740067836818,-1100.0,0.00011972,2]
[353810675,1740067836828,-166.0,0.00012522,2]
[353810676,1740067836838,-300.0,0.00013263,2]
[353810678,1740067836849,-13275.78028017,0.00013264,2]
[353810680,1740067836859,-396.0,0.00013294,2]
[353810681,1740067836872,-200.5593548,0.00013313,2]
[353810682,1740067836882,-1100.0,0.00013342,2]
[353810683,1740067836892,-2185.4825433,0.000135,2]
[353810684,1740067836903,-503.002767,0.00013573,2]
[353810685,1740067836913,-302.57148348,0.00013573,2]
[353810686,1740067836923,-500.0,0.00013573,2]
[353810687,1740067836932,-500.0,0.00013573,2]
[353810688,1740067836943,-516.52574689,0.00013573,2]
[353810689,1740067836953,-151.0,0.00013577,2]
[353810690,1740067836962,-236.41840547,0.00013584,2]
[353810691,1740067836972,-500.0,0.00013584,2]
[353810692,1740067836982,-453.75784045,0.00013584,2]
[353810693,1740067836992,-500.0,0.00013584,2]
[353810694,1740067837001,-212.768,0.00013584,2]
[353810695,1740067837010,-194782.55688474,0.00013585,2]
[353810696,1740067837152,-1302.58798151,0.00013585,2]
[353810697,1740067837178,-1967.3,0.00013585,2]
[353810704,1740067838559,-19216.55970803,0.00013585,2]
[353810743,1740067840498,-89092.81020301,0.00013585,2]
[353810788,1740067846181,-18874.998275,0.00013585,2]
[353810789,1740067846197,-82285.00017565,0.00013585,2]
[353810790,1740067846256,-6239.62599599,0.00013585,2]
[353810791,1740067846272,-2548.6569464,0.00013585,2]
[353810792,1740067846286,-3792.22814988,0.00013585,2]
[353810793,1740067846301,-15607.1942228,0.00013585,2]
[353810794,1740067978659,1798.04021019,0.00019,120]
[353810847,1740068728735,296.729136,9.041e-05,2]
[353810908,1740069032371,-0.1433852,0.00013068,2]
[353810909,1740069032412,-999.8566148,0.00013068,2]
[353810910,1740069032421,-300.0,0.0001321,2]
[353810911,1740069032431,-13275.78028017,0.00013211,2]
[353810912,1740069032440,-200.5593549,0.00013313,2]
[353810913,1740069032449,-255.902,0.00013313,2]
[353810914,1740069032459,-3462.9073171,0.000135,2]
[353810915,1740069032468,-1966.93428897,0.000135,2]
[353810916,1740069032477,-500.0,0.00013573,2]
[353810917,1740069032486,-500.0,0.00013573,2]
[353810918,1740069032495,-141.04522154,0.00013577,2]
[353810941,1740069038226,-9.95477846,0.00013577,2]
[353810942,1740069038235,-2789.61203924,0.00013585,2]
[353810943,1740069038281,-5187.82896832,0.00013585,2]
[353810944,1740069038388,-630.26168886,0.00013585,2]
[353810950,1740069040503,-674.64824956,0.00013585,2]
[353810952,1740069040558,-485.33,0.00013585,2]
[353810953,1740069040570,-13563.52706808,0.00013585,2]
[353810954,1740069040615,-2306.22,0.00013585,2]
[353810994,1740069043303,-200.5593549,0.00013313,2]
[353810995,1740069043314,-64108.24731816,0.00013585,2]
[353810996,1740069043361,-59272.2969189,0.00013585,2]
[353811004,1740069046261,-542.828615,0.00013585,2]
[353811005,1740069046330,-3887.691385,0.00013585,2]
[353811006,1740069046341,-3089.40703791,0.00013585,2]
[353811007,1740069046359,-2326.65225981,0.00013585,2]
[353811011,1740069755516,1000.0,0.00019,120]
[353811033,1740069996069,321.892679,9.041e-05,2]
[353811072,1740070232563,-250.0,0.00012456,2]
[353811073,1740070232574,-696.0637679,0.00012679,2]
[353811074,1740070232584,-1255.42255006,0.00013,2]
[353811075,1740070232594,-1000.0,0.00013,2]
[353811076,1740070232605,-900.0,0.00013068,2]
[353811077,1740070232616,-300.0,0.00013278,2]
[353811078,1740070232626,-13275.78028017,0.00013279,2]
[353811079,1740070232635,-1000.0,0.00013438,2]
[353811080,1740070232644,-1831.10441859,0.00013485,2]
[353811081,1740070232655,-256.03978832,0.00013485,2]
[353811082,1740070232664,-153.0,0.000135,2]
[353811083,1740070232673,-306.0,0.000135,2]
[353811084,1740070232683,-500.0,0.00013573,2]
[353811085,1740070232693,-151.0,0.00013577,2]
[353811086,1740070232703,-500.0,0.00013584,2]
[353811087,1740070232712,-512.37000914,0.00013584,2]
[353811088,1740070232722,-500.0,0.00013584,2]
[353811089,1740070232733,-500.0,0.00013584,2]
[353811090,1740070232743,-500.0,0.00013584,2]
[353811091,1740070232751,-500.0,0.00013584,2]
[353811092,1740070232759,-500.0,0.00013584,2]
[353811093,1740070232768,-500.0,0.00013584,2]
[353811094,1740070232778,-500.0,0.00013584,2]
[353811095,1740070232787,-341.86876532,0.00013584,2]
[353811096,1740070232796,-500.0,0.00013584,2]
[353811097,1740070232806,-500.0,0.00013584,2]
[353811098,1740070232815,-500.0,0.00013584,2]
[353811099,1740070232825,-500.0,0.00013584,2]
[353811100,1740070232835,-500.0,0.00013584,2]
[353811101,1740070232844,-500.0,0.00013584,2]
[353811102,1740070232854,-500.0,0.00013584,2]
[353811103,1740070232863,-500.0,0.00013584,2]
[353811104,1740070232874,-500.0,0.00013584,2]
[353811105,1740070232883,-553.12344077,0.00013584,2]
[353811106,1740070232893,-500.0,0.00013584,2]
[353811107,1740070232902,-500.0,0.00013584,2]
[353811108,1740070232911,-200.0,0.00013584,2]
[353811109,1740070232921,-500.0,0.00013584,2]
[353811110,1740070232930,-500.0,0.00013584,2]
[353811111,1740070232939,-200.0,0.00013584,2]
[353811112,1740070232949,-338.78054493,0.00013585,5]
[353811113,1740070232959,-162.72165123,0.00013585,5]
[353811114,1740070232969,-2126.92796544,0.00013585,2]
[353811145,1740070238354,-1668.2999999,0.00013585,2]
[353811146,1740070238366,-9562.2856,0.00013585,2]
[353811147,1740070238377,-11908.17821551,0.00013585,2]
[353811148,1740070238413,-10251.739406,0.00013585,2]
[353811158,1740070240673,-1000.0,0.00013585,2]
[353811161,1740070240686,-36020.0,0.00013585,2]
[353811163,1740070240697,-595.65711148,0.00013585,2]
[353811164,1740070240779,-311386.384155,0.00013585,2]
[353811199,1740070243400,-286110.70702364,0.00013585,2]
[353811241,1740070246476,-151.0,0.000128,2]
[353811242,1740070246485,-151.0,0.000131,2]
[353811243,1740070246496,-151.0,0.000133,2]
[353811244,1740070246505,-9110.19,0.00013585,2]
[353811245,1740070246517,-1671.0000001,0.00013585,2]
[353811247,1740070246795,-64858.88312109,0.00013585,2]
[353811248,1740070246807,-1566.303353,0.00013585,2]
[353811249,1740070246818,-4047.999,0.00013585,2]
[353811270,1740071086558,325.798045,9.041e-05,2]
[353811323,1740071440854,-151.0,0.000115,2]
[353811324,1740071440864,-151.0,0.000118,2]
[353811325,1740071440873,-20.90671414,0.00012,2]
[353811326,1740071440885,-130.09328586,0.00012,2]
[353811327,1740071440894,-894.78179,0.00012257,2]
[353811328,1740071440903,-151.0,0.000123,2]
[353811329,1740071440912,-151.0,0.000126,2]
[353811330,1740071440921,-900.0,0.00013068,2]
[353811331,1740071440930,-557.1188801,0.000131,2]
[353811332,1740071440939,-154.7376905,0.000131,2]
[353811333,1740071440948,-300.0,0.00013222,2]
[353811334,1740071440957,-13275.78028017,0.00013223,2]
[353811335,1740071440966,-396.0,0.00013255,2]
[353811336,1740071440975,-289.1311229,0.00013313,2]
[353811337,1740071440985,-2875.80027999,0.00013485,2]
[353811338,1740071440994,-204.722,0.00013499,2]
[353811339,1740071441004,-15081.35183654,0.000135,2]
[353811340,1740071441017,-4990.0,0.000135,2]
[353811744,1740071911662,1000.0,0.00019,120]
[353811746,1740072143273,1000.0,0.00019,120]
[353811748,1740072307194,329.508143,9.041e-05,2]
[353811752,1740072512696,1064.15054927,0.0001799,90]
[353811799,1740072631797,-642.62244259,0.00013,4]
[353811801,1740072631810,-357.37755741,0.00013,4]
[353811802,1740072631819,-900.0,0.00013068,2]
[353811803,1740072631829,-156.758092,0.00013229,5]
[353811804,1740072631838,-300.0,0.00013247,2]
[353811806,1740072631848,-192.754082,0.00013313,2]
[353811808,1740072631858,-163.777,0.00013313,2]
[353811809,1740072631867,-2088.33326859,0.00013416,2]
[353811810,1740072631879,-2255.6,0.00013416,2]
[353811811,1740072631890,-390.282426,0.00013416,2]
[353811812,1740072631907,-8541.56458558,0.00013416,2]
[353811813,1740072631917,-3000.0,0.00013485,2]
[353811814,1740072631926,-1647.99397674,0.00013485,2]
[353811815,1740072631936,-11322.12372116,0.000135,2]
[353811816,1740072631948,-436.33522896,0.000135,2]
[353811817,1740072631960,-3643.73622312,0.000135,2]
[353811818,1740072631970,-463.0,0.000135,2]
[353811819,1740072631980,-349.0,0.000135,2]
[353811820,1740072631989,-349.0,0.000135,2]
[353811821,1740072632000,-349.0,0.000135,2]
[353811822,1740072632009,-349.0,0.000135,2]
[353811823,1740072632019,-349.0,0.000135,2]
[353811824,1740072632028,-349.0,0.000135,2]
[353811825,1740072632037,-489.01,0.000135,2]
[353811826,1740072632047,-349.0,0.000135,2]
[353811827,1740072632057,-79.805767,0.00013573,2]
[353811828,1740072632071,-406.97992461,0.00013573,2]
[353811829,1740072632080,-500.0,0.00013573,2]
[353811830,1740072632090,-212.9312072,0.00013573,2]
[353811831,1740072632099,-500.0,0.00013573,2]
[353811832,1740072632109,-500.0,0.00013573,2]
[353811833,1740072632119,-500.0,0.00013577,2]
[353811834,1740072632128,-245.64232752,0.00013577,2]
[353811835,1740072632138,-169.39027246,0.00013585,5]
[353811836,1740072632147,-260980.39002122,0.00013585,2]
[353811837,1740072632160,-63826.84665711,0.00013585,2]
[353811847,1740072637635,-14282.97975965,0.00013585,2]
[353811852,1740072642805,-400.15,0.00013585,2]
[353811855,1740072645761,-718.268589,0.00013585,2]
[353811856,1740072645773,-799.99939,0.00013585,2]
[353811857,1740072924537,1000.0,0.00019,120]
[353811859,1740073319348,333.032736,9.041e-05,2]
[353811911,1740073832053,-1000.0,0.00013,4]
[353811913,1740073832063,-158.48594667,0.00013068,2]
[353811915,1740073832108,-641.51405333,0.00013068,2]
[353811916,1740073832118,-300.0,0.00013235,2]
[353811917,1740073832129,-13275.78028017,0.00013236,2]
[353811918,1740073832139,-192.754082,0.00013313,2]
[353811919,1740073832148,-163.777,0.00013313,2]
[353811920,1740073832157,-151.0,0.000134,2]
[353811921,1740073832166,-1483.19457903,0.00013485,2]
[353811922,1740073832174,-151.0,0.000135,2]
[353811923,1740073832181,-151.0,0.000135,2]
[353811924,1740073832190,-500.0,0.00013573,2]
[353811925,1740073832200,-300.82577441,0.00013584,2]
[353811926,1740073832209,-152.40806877,0.00013584,2]
[353811927,1740073832218,-500.0,0.00013584,2]
[353811928,1740073832228,-500.0,0.00013584,2]
[353811929,1740073832237,-500.0,0.00013584,2]
[353811930,1740073832247,-500.0,0.00013584,2]
[353811931,1740073832256,-500.0,0.00013584,2]
[353811932,1740073832266,-412.833142,0.00013584,2]
[353811933,1740073832275,-162.4041194,0.00013584,2]
[353811934,1740073832285,-289.7770184,0.00013584,2]
[353811935,1740073832294,-500.0,0.00013584,2]
[353811936,1740073832303,-500.0,0.00013584,2]
[353811937,1740073832313,-500.0,0.00013584,2]
[353811938,1740073832322,-500.0,0.00013584,2]
[353811939,1740073832332,-169.39027246,0.00013585,5]
[353811940,1740073832341,-263626.05683781,0.00013585,2]
[353811952,1740073837811,-3455.07011468,0.00013585,2]
[353811953,1740073837867,-951.8999999,0.00013585,2]
[353811954,1740073837878,-25233.93338439,0.00013585,2]
[353811955,1740073837889,-3209.59150975,0.00013585,2]
[353811956,1740073837902,-3077485.94299352,0.00013585,2]
[353811957,1740073837912,-500.0,0.00013585,2]
[353811958,1740073837921,-1896377.21424119,0.00013585,2]
[353811959,1740073837930,-500.0,0.000136,2]
[353811960,1740073837939,-151.0,0.000136,2]
[353811961,1740073837949,-151.0,0.000136,2]
[353811962,1740073837958,-151.0,0.000136,2]
[353811963,1740073837968,-151.0,0.000136,2]
[353811964,1740073837977,-151.0,0.000136,2]
[353811965,1740073837987,-151.0,0.000136,2]
[353811966,1740073837996,-154.7234452,0.000136,2]
[353811967,1740073838006,-12455.73529146,0.00013616,2]
[353811968,1740073838015,-150.0,0.00013624,2]
[353811970,1740073838025,-538.0,0.00013624,2]
[353811971,1740073838034,-1969.0,0.00013624,2]
[353811972,1740073838043,-2287.0,0.00013624,2]
[353811973,1740073838052,-501.4428217,0.00013698,2]
[353811974,1740073838061,-500.0,0.00013698,2]
[353811975,1740073838071,-500.86906289,0.00013698,2]
[353811976,1740073838080,-500.0,0.00013698,2]
[353811977,1740073838089,-500.0,0.00013698,2]
[353811978,1740073838098,-500.0,0.00013698,2]
[353811979,1740073838107,-500.0,0.00013698,2]
[353811980,1740073838116,-505.18612481,0.00013698,2]
[353811981,1740073838125,-314.94481202,0.00013698,2]
[353811982,1740073838135,-500.0,0.00013698,2]
[353811983,1740073838144,-500.0,0.00013698,2]
[353811984,1740073838153,-500.0,0.00013698,2]
[353811985,1740073838162,-392.86631651,0.00013698,2]
[353811986,1740073838171,-500.0,0.00013698,2]
[353811987,1740073838181,-500.0,0.00013698,2]
[353811988,1740073838190,-500.0,0.00013698,2]
[353811989,1740073838199,-312.648346,0.00013698,2]
[353811990,1740073838208,-500.0,0.00013698,2]
[353811991,1740073838218,-500.0,0.00013698,2]
[353811992,1740073838227,-500.0,0.00013698,2]
[353811993,1740073838236,-500.0,0.00013698,2]
[353811994,1740073838245,-378.40382975,0.00013698,2]
[353811995,1740073838253,-500.0,0.00013698,2]
[353811996,1740073838263,-500.0,0.00013698,2]
[353811997,1740073838272,-500.0,0.00013698,2]
[353811998,1740073838281,-500.0,0.00013698,2]
[353811999,1740073838290,-500.0,0.00013698,2]
[353812000,1740073838299,-500.0,0.00013698,2]
[353812001,1740073838309,-500.0,0.00013698,2]
[353812002,1740073838319,-503.35012541,0.00013698,2]
[353812003,1740073838328,-500.0,0.00013698,2]
[353812004,1740073838337,-500.0,0.00013698,2]
[353812005,1740073838347,-500.0,0.00013698,2]
[353812006,1740073838357,-500.0,0.00013698,2]
[353812007,1740073838484,-500.0,0.00013698,2]
[353812008,1740073838494,-500.0,0.00013698,2]
[353812009,1740073838504,-500.0,0.00013698,2]
[353812010,1740073838514,-500.0,0.00013698,2]
[353812011,1740073838523,-506.65190305,0.00013698,2]
[353812012,1740073838533,-500.0,0.00013698,2]
[353812013,1740073838542,-500.0,0.00013698,2]
[353812014,1740073838552,-500.0,0.00013698,2]
[353812015,1740073838561,-310.52549909,0.00013698,2]
[353812016,1740073838570,-500.0,0.00013698,2]
[353812017,1740073838580,-500.0,0.00013698,2]
[353812018,1740073838589,-500.0,0.00013698,2]
[353812019,1740073838599,-500.0,0.00013698,2]
[353812020,1740073838608,-500.0,0.00013698,2]
[353812021,1740073838618,-500.0,0.00013698,2]
[353812022,1740073838627,-500.0,0.00013698,2]
[353812023,1740073838636,-500.0,0.00013698,2]
[353812024,1740073838646,-500.0,0.00013698,2]
[353812025,1740073838655,-500.0,0.00013698,2]
[353812026,1740073838664,-150.2,0.00013698,2]
[353812027,1740073838674,-500.0,0.00013698,2]
[353812028,1740073838683,-500.0,0.00013698,2]
[353812029,1740073838692,-500.0,0.00013698,2]
[353812030,1740073838702,-500.0,0.00013698,2]
[353812031,1740073838711,-482.0,0.00013698,2]
[353812032,1740073838720,-482.0,0.00013698,2]
[353812033,1740073838730,-482.0,0.00013698,2]
[353812034,1740073838739,-482.0,0.00013698,2]
[353812035,1740073838748,-482.0,0.00013698,2]
[353812036,1740073838757,-482.0,0.00013698,2]
[353812037,1740073838766,-500.0,0.00013698,2]
[353812038,1740073838776,-482.0,0.00013698,2]
[353812039,1740073838785,-482.0,0.00013698,2]
[353812040,1740073838794,-482.0,0.00013698,2]
[353812041,1740073838803,-500.0,0.00013698,2]
[353812042,1740073838813,-482.0,0.00013698,2]
[353812043,1740073838825,-482.0,0.00013698,2]
[353812044,1740073838834,-482.0,0.00013698,2]
[353812045,1740073838843,-482.0,0.00013698,2]
[353812046,1740073838852,-482.0,0.00013698,2]
[353812047,1740073838862,-482.0,0.00013698,2]
[353812048,1740073838872,-482.0,0.00013698,2]
[353812049,1740073838881,-482.0,0.00013698,2]
[353812050,1740073838892,-482.0,0.00013698,2]
[353812051,1740073838902,-500.0,0.00013698,2]
[353812052,1740073838912,-500.04087562,0.00013698,2]
[353812053,1740073838922,-500.0,0.00013698,2]
[353812054,1740073838932,-475.0087835,0.00013698,2]
[353812055,1740073838942,-500.0,0.00013698,2]
[353812056,1740073838952,-501.28816338,0.00013698,2]
[353812057,1740073838964,-503.28929603,0.00013698,2]
[353812058,1740073838976,-500.0,0.00013698,2]
[353812059,1740073838987,-500.0,0.00013698,2]
[353812060,1740073838998,-500.0,0.00013698,2]
[353812061,1740073839008,-500.0,0.00013698,2]
[353812062,1740073839019,-500.0,0.00013698,2]
[353812063,1740073839031,-500.0,0.00013698,2]
[353812064,1740073839041,-500.0,0.00013698,2]
[353812065,1740073839052,-500.0,0.00013698,2]
[353812066,1740073839061,-500.0,0.00013698,2]
[353812067,1740073839070,-500.0,0.00013698,2]
[353812068,1740073839080,-500.0,0.00013698,2]
[353812069,1740073839095,-500.0,0.00013698,2]
[353812070,1740073839105,-832.33,0.00013698,2]
[353812071,1740073839117,-500.0,0.00013698,2]
[353812072,1740073839127,-587.96795408,0.00013698,2]
[353812073,1740073839136,-501.9928747,0.00013698,2]
[353812074,1740073839146,-236.11548078,0.00013698,2]
[353812075,1740073839156,-500.0,0.00013698,2]
[353812076,1740073839165,-500.0,0.00013698,2]
[353812077,1740073839174,-505.73715334,0.00013698,2]
[353812078,1740073839183,-500.0,0.00013698,2]
[353812079,1740073839194,-500.0,0.00013698,2]
[353812080,1740073839204,-500.0,0.00013698,2]
[353812081,1740073839213,-500.0,0.00013698,2]
[353812082,1740073839226,-500.0,0.00013698,2]
[353812083,1740073839236,-500.0,0.00013698,2]
[353812084,1740073839246,-500.0,0.00013698,2]
[353812085,1740073839257,-500.0,0.00013698,2]
[353812086,1740073839273,-500.0,0.00013698,2]
[353812087,1740073839283,-500.0,0.00013698,2]
[353812088,1740073839293,-523.18,0.00013698,2]
[353812089,1740073839303,-500.0,0.00013698,2]
[353812090,1740073839312,-500.29288688,0.00013698,2]
[353812091,1740073839321,-527.55312582,0.00013698,2]
[353812092,1740073839330,-500.0,0.00013698,2]
[353812093,1740073839339,-500.0,0.00013698,2]
[353812094,1740073839347,-500.0,0.00013698,2]
[353812095,1740073839358,-500.0,0.00013698,2]
[353812096,1740073839367,-500.0,0.00013698,2]
[353812097,1740073839376,-500.0,0.00013698,2]
[353812098,1740073839385,-500.0,0.00013698,2]
[353812099,1740073839394,-500.0,0.00013698,2]
[353812100,1740073839403,-734.48,0.00013698,2]
[353812101,1740073839412,-500.0,0.00013698,2]
[353812102,1740073839423,-500.0,0.00013698,2]
[353812103,1740073839431,-500.0,0.00013698,2]
[353812104,1740073839441,-500.0,0.00013698,2]
[353812105,1740073839451,-500.0,0.00013698,2]
[353812106,1740073839461,-500.0,0.00013698,2]
[353812108,1740073839470,-619.00126444,0.00013698,2]
[353812109,1740073839479,-500.0,0.00013698,2]
[353812110,1740073839488,-500.0,0.00013698,2]
[353812111,1740073839497,-500.0,0.00013698,2]
[353812112,1740073839506,-500.0,0.00013698,2]
[353812113,1740073839516,-500.0,0.00013698,2]
[353812114,1740073839525,-500.0,0.00013698,2]
[353812115,1740073839534,-500.0,0.00013698,2]
[353812116,1740073839544,-500.30976005,0.00013698,2]
[353812117,1740073839553,-500.0,0.00013698,2]
[353812118,1740073839563,-504.51035314,0.00013698,2]
[353812119,1740073839573,-500.0,0.00013698,2]
[353812120,1740073839582,-500.0,0.00013698,2]
[353812121,1740073839592,-503.94911937,0.00013698,2]
[353812122,1740073839601,-503.26975791,0.00013698,2]
[353812123,1740073839611,-196.012323,0.00013698,2]
[353812124,1740073839620,-500.0,0.00013698,2]
[353812125,1740073839629,-500.37266253,0.00013698,2]
[353812126,1740073839639,-500.0,0.00013698,2]
[353812127,1740073839649,-500.0,0.00013698,2]
[353812128,1740073839658,-500.0,0.00013698,2]
[353812129,1740073839667,-500.0,0.00013698,2]
[353812130,1740073839677,-509.81387919,0.00013698,2]
[353812132,1740073839686,-500.0,0.00013698,2]
[353812133,1740073839696,-500.0,0.00013698,2]
[353812135,1740073839705,-566.16251725,0.00013698,2]
[353812136,1740073839715,-500.0,0.00013698,2]
[353812137,1740073839724,-500.0,0.00013698,2]
[353812139,1740073839733,-500.0,0.00013698,2]
[353812140,1740073839743,-501.80990277,0.00013698,2]
[353812141,1740073839752,-500.0,0.00013698,2]
[353812142,1740073839761,-500.0,0.00013698,2]
[353812143,1740073839771,-500.0,0.00013698,2]
[353812144,1740073839780,-504.98460337,0.00013698,2]
[353812146,1740073839789,-501.00463615,0.00013698,2]
[353812148,1740073839798,-500.0,0.00013698,2]
[353812149,1740073839808,-503.70163895,0.00013698,2]
[353812150,1740073839821,-512.76,0.00013698,2]
[353812151,1740073839836,-503.34223926,0.00013698,2]
[353812152,1740073839845,-500.0,0.00013698,2]
[353812153,1740073839854,-500.0,0.00013698,2]
[353812154,1740073839863,-500.0,0.00013698,2]
[353812155,1740073839873,-2330.69,0.00013698,2]
[353812156,1740073839884,-500.0,0.00013698,2]
[353812157,1740073839893,-401.6120525,0.00013698,2]
[353812158,1740073839905,-500.0,0.00013698,2]
[353812159,1740073839916,-500.0,0.00013698,2]
[353812160,1740073839926,-2298.24,0.00013698,2]
[353812161,1740073839935,-500.0,0.00013698,2]
[353812163,1740073839945,-500.0,0.00013698,2]
[353812165,1740073839955,-502.0,0.00013698,2]
[353812167,1740073839964,-959.04,0.00013698,2]
[353812169,1740073839973,-500.0,0.00013698,2]
[353812170,1740073839983,-500.0,0.00013698,2]
[353812172,1740073839993,-500.0,0.00013698,2]
[353812174,1740073840004,-230.14872455,0.00013698,2]
[353812175,1740073840014,-500.0,0.00013698,2]
[353812177,1740073840023,-500.0,0.00013698,2]
[353812179,1740073840033,-643.43969972,0.00013698,2]
[353812180,1740073840043,-500.0,0.00013698,2]
[353812181,1740073840053,-500.0,0.00013698,2]
[353812182,1740073840062,-500.0,0.00013698,2]
[353812183,1740073840071,-500.0,0.00013698,2]
[353812185,1740073840081,-501.28990789,0.00013698,2]
[353812186,1740073840091,-501.33557381,0.00013698,2]
[353812187,1740073840101,-500.0,0.00013698,2]
[353812188,1740073840111,-500.0,0.00013698,2]
[353812190,1740073840121,-500.0,0.00013698,2]
[353812191,1740073840131,-500.0,0.00013698,2]
[353812192,1740073840141,-246.54041762,0.00013698,2]
[353812193,1740073840150,-324.99941487,0.00013698,2]
[353812194,1740073840162,-500.0,0.00013698,2]
[353812195,1740073840172,-500.0,0.00013698,2]
[353812196,1740073840182,-500.0,0.00013698,2]
[353812197,1740073840191,-500.0,0.00013698,2]
[353812198,1740073840201,-1194.47,0.00013698,2]
[353812199,1740073840211,-500.0,0.00013698,2]
[353812200,1740073840220,-500.0,0.00013698,2]
[353812201,1740073840229,-500.0,0.00013698,2]
[353812203,1740073840239,-500.0,0.00013698,2]
[353812205,1740073840248,-500.0,0.00013698,2]
[353812206,1740073840258,-500.0,0.00013698,2]
[353812207,1740073840267,-500.0,0.00013698,2]
[353812208,1740073840277,-500.74955732,0.00013698,2]
[353812209,1740073840286,-377.75823898,0.00013698,2]
[353812210,1740073840295,-577.96724556,0.00013698,2]
[353812211,1740073840304,-500.0,0.00013698,2]
[353812212,1740073840313,-500.0,0.00013698,2]
[353812213,1740073840331,-500.0,0.00013698,2]
[353812214,1740073840346,-500.0,0.00013698,2]
[353812215,1740073840355,-500.0,0.00013698,2]
[353812216,1740073840364,-500.0,0.00013698,2]
[353812217,1740073840374,-500.0,0.00013698,2]
[353812218,1740073840383,-500.0,0.00013698,2]
[353812219,1740073840392,-755.28,0.00013698,2]
[353812220,1740073840402,-500.0,0.00013698,2]
[353812221,1740073840412,-500.0,0.00013698,2]
[353812222,1740073840422,-500.0,0.00013698,2]
[353812223,1740073840431,-500.0,0.00013698,2]
[353812224,1740073840440,-500.0,0.00013698,2]
[353812225,1740073840449,-501.5379233,0.00013698,2]
[353812226,1740073840459,-500.0,0.00013698,2]
[353812227,1740073840551,-1977.01,0.00013698,2]
[353812228,1740073840574,-677.41,0.00013698,2]
[353812229,1740073840584,-500.0,0.00013698,2]
[353812230,1740073840594,-500.0,0.00013698,2]
[353812231,1740073840604,-500.0,0.00013698,2]
[353812232,1740073840614,-520.83,0.00013698,2]
[353812233,1740073840623,-520.83,0.00013698,2]
[353812234,1740073840633,-520.83,0.00013698,2]
[353812235,1740073840642,-500.0,0.00013698,2]
[353812236,1740073840651,-520.83,0.00013698,2]
[353812237,1740073840661,-520.83,0.00013698,2]
[353812238,1740073840670,-520.83,0.00013698,2]
[353812239,1740073840679,-520.83,0.00013698,2]
[353812240,1740073840688,-520.83,0.00013698,2]
[353812241,1740073840697,-520.83,0.00013698,2]
[353812242,1740073840705,-520.83,0.00013698,2]
[353812243,1740073840714,-520.83,0.00013698,2]
[353812244,1740073840723,-520.83,0.00013698,2]
[353812245,1740073840732,-520.83,0.00013698,2]
[353812246,1740073840741,-520.83,0.00013698,2]
[353812247,1740073840749,-520.83,0.00013698,2]
[353812248,1740073840758,-602.33300372,0.00013698,2]
[353812249,1740073840767,-520.83,0.00013698,2]
[353812250,1740073840776,-520.83,0.00013698,2]
[353812251,1740073840786,-520.83,0.00013698,2]
[353812252,1740073840795,-520.83,0.00013698,2]
[353812253,1740073840804,-520.83,0.00013698,2]
[353812254,1740073840814,-520.83,0.00013698,2]
[353812255,1740073840829,-520.83,0.00013698,2]